fUSD/lending_fUSD_20260607
["ID","MTS","AMOUNT","RATE_DAILY","PERIOD"]
[424402442,1780835442000,-177.81915,0.00015,2]
[424402439,1780835442000,-151.0,0.00015,2]
[424402449,1780835442000,-151.0,0.00015,2]
[424402468,1780835442000,-544.985031,0.00015068,2]
[424402428,1780835442000,-5403.8167257,0.00015,2]
[424402429,1780835442000,-3759.8,0.00015,2]
[424402438,1780835442000,-151.0,0.00015,2]
[424402436,1780835442000,-151.0,0.00015,2]
[424402437,1780835442000,-157.60519,0.00015,2]
[424402430,1780835442000,-3196.0,0.00015,2]
[424402432,1780835442000,-2002043.47882325,0.00015,2]
[424402448,1780835442000,-151.0,0.00015,2]
[424402433,1780835442000,-428.82569778,0.00015,2]
[424402431,1780835442000,-1551.22376494,0.00015,2]
[424402434,1780835442000,-151.0,0.00015,2]
[424402446,1780835442000,-151.0,0.00015,2]
[424402440,1780835442000,-151.0,0.00015,2]
[424402447,1780835442000,-151.0,0.00015,2]
[424402441,1780835442000,-969.84,0.00015,2]
[424402444,1780835442000,-151.0,0.00015,2]
[424402445,1780835442000,-151.0,0.00015,2]
[424402435,1780835442000,-151.0,0.00015,2]
[424402467,1780835442000,-544.985031,0.00015068,2]
[424402483,1780835442000,-150.0,0.00015223,2]
[424402475,1780835442000,-544.985031,0.00015068,2]
[424402492,1780835442000,-1000.0,0.00015388,2]
[424402494,1780835442000,-1000.0,0.00015388,2]
[424402503,1780835442000,-1000.0,0.00015388,2]
[424402502,1780835442000,-532.36,0.00015388,2]
[424402498,1780835442000,-1000.0,0.00015388,2]
[424402497,1780835442000,-1000.0,0.00015388,2]
[424402500,1780835442000,-1000.0,0.00015388,2]
[424402499,1780835442000,-1000.0,0.00015388,2]
[424402495,1780835442000,-1000.0,0.00015388,2]
[424402501,1780835442000,-1000.0,0.00015388,2]
[424402505,1780835442000,-1000.0,0.00015388,2]
[424402506,1780835442000,-1000.0,0.00015388,2]
[424402504,1780835442000,-1000.0,0.00015388,2]
[424402508,1780835442000,-1000.0,0.00015388,2]
[424402507,1780835442000,-805.15,0.00015388,2]
[424402509,1780835442000,-1000.0,0.00015388,2]
[424402469,1780835442000,-544.985031,0.00015068,2]
[424402493,1780835442000,-1000.0,0.00015388,2]
[424402491,1780835442000,-1000.0,0.00015388,2]
[424402496,1780835442000,-1000.0,0.00015388,2]
[424402487,1780835442000,-150.0,0.00015223,2]
[424402470,1780835442000,-544.985031,0.00015068,2]
[424402488,1780835442000,-150.0,0.00015223,2]
[424402472,1780835442000,-544.985031,0.00015068,2]
[424402474,1780835442000,-544.985031,0.00015068,2]
[424402476,1780835442000,-544.985031,0.00015068,2]
[424402471,1780835442000,-544.985031,0.00015068,2]
[424402465,1780835442000,-176.0,0.00015068,2]
[424402473,1780835442000,-544.985031,0.00015068,2]
[424402479,1780835442000,-1668.5535,0.00015111,2]
[424402477,1780835442000,-544.985031,0.00015068,2]
[424402490,1780835442000,-185.66834356,0.000153,2]
[424402489,1780835442000,-350.0,0.00015243,2]
[424402480,1780835442000,-185.66834356,0.000152,2]
[424402481,1780835442000,-159.56375,0.000152,2]
[424402485,1780835442000,-150.0,0.00015223,2]
[424402486,1780835442000,-150.0,0.00015223,2]
[424402482,1780835442000,-150.0,0.00015223,2]
[424402478,1780835442000,-250.0,0.00015099,2]
[424402484,1780835442000,-150.0,0.00015223,2]
[424402559,1780835443000,-151.0,0.00016438,2]
[424402558,1780835443000,-151.0,0.00016438,2]
[424402557,1780835443000,-151.0,0.00016438,2]
[424402547,1780835443000,-151.0,0.00016438,2]
[424402546,1780835443000,-151.0,0.00016438,2]
[424402545,1780835443000,-151.0,0.00016438,2]
[424402544,1780835443000,-151.0,0.00016438,2]
[424402543,1780835443000,-151.0,0.00016438,2]
[424402550,1780835443000,-151.0,0.00016438,2]
[424402542,1780835443000,-151.0,0.00016438,2]
[424402548,1780835443000,-151.0,0.00016438,2]
[424402549,1780835443000,-151.0,0.00016438,2]
[424402571,1780835443000,-152.0,0.00016438,2]
[424402555,1780835443000,-151.0,0.00016438,2]
[424402556,1780835443000,-151.0,0.00016438,2]
[424402553,1780835443000,-151.0,0.00016438,2]
[424402554,1780835443000,-151.0,0.00016438,2]
[424402552,1780835443000,-151.0,0.00016438,2]
[424402560,1780835443000,-151.0,0.00016438,2]
[424402572,1780835443000,-152.0,0.00016438,2]
[424402561,1780835443000,-151.0,0.00016438,2]
[424402566,1780835443000,-151.0,0.00016438,2]
[424402568,1780835443000,-152.0,0.00016438,2]
[424402563,1780835443000,-151.0,0.00016438,2]
[424402541,1780835443000,-177.183345,0.00016438,2]
[424402551,1780835443000,-151.0,0.00016438,2]
[424402540,1780835443000,-350.0,0.00016396,2]
[424402517,1780835443000,-159.56375,0.000156,2]
[424402539,1780835443000,-500.0,0.00016356,2]
[424402516,1780835443000,-343.199234,0.00015589,2]
[424402513,1780835443000,-350.0,0.00015476,2]
[424402514,1780835443000,-293.26,0.00015484,2]
[424402511,1780835443000,-159.56376,0.000154,2]
[424402512,1780835443000,-193.269193,0.00015433,2]
[424402565,1780835443000,-151.0,0.00016438,2]
[424402525,1780835443000,-350.0,0.00015979,2]
[424402528,1780835443000,-300.0,0.00016,2]
[424402521,1780835443000,-350.0,0.00015692,2]
[424402527,1780835443000,-150.0,0.00016,2]
[424402520,1780835443000,-350.0,0.00015663,2]
[424402519,1780835443000,-933.0,0.00015638,2]
[424402537,1780835443000,-350.0,0.00016304,2]
[424402524,1780835443000,-350.0,0.00015914,2]
[424402523,1780835443000,-159.56376,0.000158,2]
[424402529,1780835443000,-159.56375,0.00016,2]
[424402518,1780835443000,-399.0,0.00015638,2]
[424402515,1780835443000,-433.0,0.00015507,2]
[424402526,1780835443000,-350.0,0.00015999,2]
[424402532,1780835443000,-218.354039,0.0001611,2]
[424402531,1780835443000,-166.661199,0.0001611,2]
[424402533,1780835443000,-299.59,0.0001611,2]
[424402534,1780835443000,-229.87005247,0.0001611,15]
[424402538,1780835443000,-200.0,0.0001634,2]
[424402536,1780835443000,-500.0,0.00016295,2]
[424402535,1780835443000,-350.0,0.0001626,2]
[424402530,1780835443000,-322.90427168,0.00016,2]
[424402569,1780835443000,-152.0,0.00016438,2]
[424402510,1780835443000,-883.09,0.00015388,2]
[424402562,1780835443000,-151.0,0.00016438,2]
[424402599,1780835443000,-736.0,0.00016813,2]
[424402611,1780835443000,-150.0,0.00018223,2]
[424402601,1780835443000,-858.45,0.00017124,2]
[424402604,1780835443000,-299.59,0.00017721,2]
[424402605,1780835443000,-162.07526097,0.00017808,2]
[424402603,1780835443000,-370.376109,0.0001719,2]
[424402606,1780835443000,-500.0,0.00017808,2]
[424402609,1780835443000,-539.69955174,0.00018,2]
[424402608,1780835443000,-169.69,0.00017871,2]
[424402607,1780835443000,-169.69,0.00017871,2]
[424402613,1780835443000,-150.0,0.00018223,2]
[424402612,1780835443000,-150.0,0.00018223,2]
[424402615,1780835443000,-150.0,0.00018223,2]
[424402614,1780835443000,-150.0,0.00018223,2]
[424402616,1780835443000,-150.0,0.00018223,2]
[424402623,1780835443000,-999.99,0.00018533,2]
[424402618,1780835443000,-318.02680542,0.0001833,2]
[424402620,1780835443000,-9999.99,0.00018533,2]
[424402621,1780835443000,-299.99,0.00018533,4]
[424402619,1780835443000,-720.96133112,0.00018342,2]
[424402617,1780835443000,-674.0,0.00018225,2]
[424402622,1780835443000,-150.99,0.00018533,2]
[424402625,1780835443000,-3236.18534822,0.00019,2]
[424402624,1780835443000,-382.0,0.00018638,2]
[424402627,1780835443000,-365.04274191,0.0001901,7]
[424402626,1780835443000,-1534.19,0.00019008,2]
[424402564,1780835443000,-151.0,0.00016438,2]
[424402602,1780835443000,-205.97047547,0.0001719,2]
[424402600,1780835443000,-178.463601,0.00017074,2]
[424402522,1780835443000,-152.0,0.00015707,2]
[424402594,1780835443000,-152.0,0.00016438,2]
[424402610,1780835443000,-350.0,0.00018,2]
[424402567,1780835443000,-273.641047,0.00016438,2]
[424402574,1780835443000,-156.03193139,0.00016438,2]
[424402584,1780835443000,-202.576104,0.00016438,2]
[424402576,1780835443000,-152.0,0.00016438,2]
[424402573,1780835443000,-152.0,0.00016438,2]
[424402575,1780835443000,-152.0,0.00016438,2]
[424402585,1780835443000,-202.576104,0.00016438,2]
[424402577,1780835443000,-152.0,0.00016438,2]
[424402580,1780835443000,-240.0,0.00016438,2]
[424402579,1780835443000,-152.0,0.00016438,2]
[424402582,1780835443000,-202.576104,0.00016438,2]
[424402578,1780835443000,-156.136964,0.00016438,2]
[424402570,1780835443000,-152.0,0.00016438,2]
[424402583,1780835443000,-202.576104,0.00016438,2]
[424402581,1780835443000,-152.0,0.00016438,2]
[424402592,1780835443000,-202.576104,0.00016438,2]
[424402596,1780835443000,-816.420522,0.00016438,2]
[424402595,1780835443000,-816.420522,0.00016438,2]
[424402598,1780835443000,-969.84,0.000168,2]
[424402591,1780835443000,-202.576104,0.00016438,2]
[424402593,1780835443000,-202.576104,0.00016438,2]
[424402590,1780835443000,-202.576104,0.00016438,2]
[424402589,1780835443000,-202.576104,0.00016438,2]
[424402588,1780835443000,-202.576104,0.00016438,2]
[424402586,1780835443000,-202.576104,0.00016438,2]
[424402587,1780835443000,-202.576104,0.00016438,2]
[424402597,1780835443000,-816.420522,0.00016438,2]
[424402672,1780835444000,-174.61919141,0.00019495,2]
[424402667,1780835444000,-151.0,0.00019495,2]
[424402668,1780835444000,-151.0,0.00019495,2]
[424402666,1780835444000,-174.61919142,0.00019495,2]
[424402665,1780835444000,-151.0,0.00019495,2]
[424402660,1780835444000,-693.39197629,0.00019495,2]
[424402671,1780835444000,-151.0,0.00019495,2]
[424402662,1780835444000,-200.0,0.00019495,2]
[424402661,1780835444000,-151.0,0.00019495,2]
[424402663,1780835444000,-209.40437684,0.00019495,2]
[424402669,1780835444000,-578.20924308,0.00019495,2]
[424402664,1780835444000,-151.0,0.00019495,2]
[424402674,1780835444000,-296.62077113,0.00019495,2]
[424402677,1780835444000,-152.0,0.00019495,2]
[424402680,1780835444000,-151.0,0.00019495,2]
[424402676,1780835444000,-209.40437684,0.00019495,2]
[424402673,1780835444000,-151.0,0.00019495,2]
[424402675,1780835444000,-242.15909246,0.00019495,2]
[424402684,1780835444000,-152.0,0.00019495,2]
[424402681,1780835444000,-151.0,0.00019495,2]
[424402682,1780835444000,-152.0,0.00019495,2]
[424402679,1780835444000,-152.0,0.00019495,2]
[424402683,1780835444000,-151.0,0.00019495,2]
[424402678,1780835444000,-151.0,0.00019495,2]
[424402687,1780835444000,-152.0,0.00019495,2]
[424402695,1780835444000,-500.0,0.00019495,2]
[424402653,1780835444000,-288.801163,0.00019178,2]
[424402685,1780835444000,-151.0,0.00019495,2]
[424402654,1780835444000,-288.801163,0.00019178,2]
[424402645,1780835444000,-288.801163,0.00019178,2]
[424402651,1780835444000,-288.801163,0.00019178,2]
[424402636,1780835444000,-151.0,0.00019178,2]
[424402635,1780835444000,-151.0,0.00019178,2]
[424402634,1780835444000,-151.0,0.00019178,2]
[424402628,1780835444000,-500.0,0.00019098,2]
[424402630,1780835444000,-158.563568,0.00019178,2]
[424402631,1780835444000,-158.563568,0.00019178,2]
[424402633,1780835444000,-151.0,0.00019178,2]
[424402632,1780835444000,-158.563568,0.00019178,2]
[424402629,1780835444000,-158.563568,0.00019178,2]
[424402639,1780835444000,-151.0,0.00019178,2]
[424402640,1780835444000,-151.0,0.00019178,2]
[424402637,1780835444000,-151.0,0.00019178,2]
[424402638,1780835444000,-151.0,0.00019178,2]
[424402655,1780835444000,-288.801163,0.00019178,2]
[424402647,1780835444000,-288.801163,0.00019178,2]
[424402686,1780835444000,-151.0,0.00019495,2]
[424402644,1780835444000,-151.0,0.00019178,2]
[424402641,1780835444000,-151.0,0.00019178,2]
[424402642,1780835444000,-151.0,0.00019178,2]
[424402643,1780835444000,-151.0,0.00019178,2]
[424402649,1780835444000,-288.801163,0.00019178,2]
[424402659,1780835444000,-586.53,0.00019355,7]
[424402657,1780835444000,-969.84,0.000192,2]
[424402658,1780835444000,-299.59,0.00019332,2]
[424402652,1780835444000,-288.801163,0.00019178,2]
[424402650,1780835444000,-288.801163,0.00019178,2]
[424402656,1780835444000,-288.801163,0.00019178,2]
[424402648,1780835444000,-288.801163,0.00019178,2]
[424402646,1780835444000,-288.801163,0.00019178,2]
[424402688,1780835444000,-151.0,0.00019495,2]
[424402670,1780835444000,-152.0,0.00019495,2]
[424402696,1780835444000,-500.0,0.00019495,2]
[424402725,1780835444000,-500.0,0.00019495,2]
[424402733,1780835444000,-151.0,0.00019715,2]
[424402724,1780835444000,-500.0,0.00019495,2]
[424402735,1780835444000,-151.0,0.00019825,2]
[424402726,1780835444000,-666.52,0.000195,7]
[424402734,1780835444000,-151.0,0.0001977,2]
[424402732,1780835444000,-151.0,0.0001966,2]
[424402729,1780835444000,-745.65223615,0.00019605,2]
[424402731,1780835444000,-199.0876583,0.0001966,2]
[424402727,1780835444000,-719.04747942,0.0001955,2]
[424402728,1780835444000,-151.0,0.0001955,2]
[424402737,1780835444000,-151.0,0.00019935,2]
[424402747,1780835444000,-450.0,0.0002,2]
[424402719,1780835444000,-151.0,0.00019495,2]
[424402736,1780835444000,-151.0,0.0001988,2]
[424402738,1780835444000,-151.0,0.0001999,2]
[424402739,1780835444000,-163.53857029,0.0002,14]
[424402741,1780835444000,-190.334214,0.0002,2]
[424402742,1780835444000,-442.0,0.0002,2]
[424402744,1780835444000,-179.0,0.0002,2]
[424402743,1780835444000,-504.0,0.0002,2]
[424402745,1780835444000,-429.0,0.0002,2]
[424402740,1780835444000,-150.0,0.0002,2]
[424402746,1780835444000,-337.0,0.0002,2]
[424402750,1780835444000,-296.0,0.0002,2]
[424402749,1780835444000,-471.0,0.0002,2]
[424402751,1780835444000,-225.0,0.0002,2]
[424402697,1780835444000,-151.0,0.00019495,2]
[424402748,1780835444000,-509.0,0.0002,2]
[424402720,1780835444000,-500.0,0.00019495,2]
[424402730,1780835444000,-151.0,0.00019605,2]
[424402718,1780835444000,-151.0,0.00019495,2]
[424402698,1780835444000,-152.0,0.00019495,2]
[424402722,1780835444000,-151.0,0.00019495,2]
[424402689,1780835444000,-152.0,0.00019495,2]
[424402694,1780835444000,-151.0,0.00019495,2]
[424402690,1780835444000,-151.0,0.00019495,2]
[424402693,1780835444000,-152.0,0.00019495,2]
[424402691,1780835444000,-151.0,0.00019495,2]
[424402700,1780835444000,-500.0,0.00019495,2]
[424402710,1780835444000,-151.0,0.00019495,2]
[424402711,1780835444000,-500.0,0.00019495,2]
[424402699,1780835444000,-151.0,0.00019495,2]
[424402701,1780835444000,-151.0,0.00019495,2]
[424402702,1780835444000,-152.0,0.00019495,2]
[424402706,1780835444000,-152.0,0.00019495,2]
[424402705,1780835444000,-151.0,0.00019495,2]
[424402692,1780835444000,-151.0,0.00019495,2]
[424402704,1780835444000,-500.0,0.00019495,2]
[424402716,1780835444000,-151.0,0.00019495,2]
[424402715,1780835444000,-151.0,0.00019495,2]
[424402717,1780835444000,-500.0,0.00019495,2]
[424402723,1780835444000,-500.0,0.00019495,2]
[424402713,1780835444000,-151.0,0.00019495,2]
[424402714,1780835444000,-500.0,0.00019495,2]
[424402721,1780835444000,-151.0,0.00019495,2]
[424402709,1780835444000,-151.0,0.00019495,2]
[424402707,1780835444000,-151.0,0.00019495,2]
[424402708,1780835444000,-500.0,0.00019495,2]
[424402703,1780835444000,-151.0,0.00019495,2]
[424402712,1780835444000,-151.0,0.00019495,2]
[424402790,1780835445000,-233.5188934,0.00021139,2]
[424402793,1780835445000,-151.0,0.00021139,2]
[424402796,1780835445000,-150.0,0.00021223,2]
[424402791,1780835445000,-194.72792766,0.00021139,2]
[424402794,1780835445000,-151.0,0.00021139,2]
[424402798,1780835445000,-180.0,0.00021301,2]
[424402797,1780835445000,-4651.67,0.00021273,2]
[424402786,1780835445000,-289.0,0.00021,2]
[424402788,1780835445000,-158.0,0.00021,2]
[424402789,1780835445000,-391.0,0.00021,2]
[424402795,1780835445000,-500.0,0.00021139,2]
[424402784,1780835445000,-296.0,0.00021,2]
[424402787,1780835445000,-272.0,0.00021,2]
[424402792,1780835445000,-233.5188934,0.00021139,2]
[424402805,1780835445000,-151.0,0.00021687,2]
[424402801,1780835445000,-382.0,0.00021638,2]
[424402803,1780835445000,-201.93286098,0.00021687,2]
[424402810,1780835445000,-154.28834247,0.00021833,2]
[424402804,1780835445000,-242.15909246,0.00021687,2]
[424402812,1780835445000,-151.0,0.00021918,2]
[424402802,1780835445000,-242.15909246,0.00021687,2]
[424402800,1780835445000,-969.84,0.000216,2]
[424402806,1780835445000,-151.0,0.00021687,2]
[424402808,1780835445000,-152.0,0.00021687,3]
[424402811,1780835445000,-307.0068747,0.00021902,2]
[424402807,1780835445000,-500.0,0.00021687,2]
[424402809,1780835445000,-300.0,0.00021709,7]
[424402782,1780835445000,-509.0,0.00021,2]
[424402799,1780835445000,-858.45,0.00021562,2]
[424402781,1780835445000,-450.0,0.00021,2]
[424402760,1780835445000,-181.08010149,0.00020043,2]
[424402780,1780835445000,-337.0,0.00021,2]
[424402814,1780835445000,-151.000018,0.00021918,2]
[424402761,1780835445000,-217.15233878,0.00020043,2]
[424402753,1780835445000,-574.0,0.0002,2]
[424402758,1780835445000,-200.0,0.00020043,2]
[424402754,1780835445000,-400.0,0.0002,2]
[424402759,1780835445000,-217.15233878,0.00020043,2]
[424402756,1780835445000,-158.0,0.0002,2]
[424402755,1780835445000,-272.0,0.0002,2]
[424402752,1780835445000,-289.0,0.0002,2]
[424402757,1780835445000,-391.0,0.0002,2]
[424402762,1780835445000,-151.0,0.00020043,2]
[424402764,1780835445000,-500.0,0.00020043,2]
[424402771,1780835445000,-151.0,0.00020591,2]
[424402773,1780835445000,-500.0,0.00020591,2]
[424402763,1780835445000,-151.0,0.00020043,2]
[424402765,1780835445000,-151.0,0.00020045,2]
[424402766,1780835445000,-438.0,0.00020302,5]
[424402767,1780835445000,-225.18697532,0.00020591,2]
[424402772,1780835445000,-151.0,0.00020591,2]
[424402769,1780835445000,-187.78006524,0.00020591,2]
[424402770,1780835445000,-225.18697532,0.00020591,2]
[424402768,1780835445000,-245.18919804,0.00020591,2]
[424402775,1780835445000,-606.51178636,0.00020737,2]
[424402785,1780835445000,-225.0,0.00021,2]
[424402777,1780835445000,-504.0,0.00021,2]
[424402776,1780835445000,-442.0,0.00021,2]
[424402774,1780835445000,-16626.00410392,0.00020593,2]
[424402778,1780835445000,-179.0,0.00021,2]
[424402783,1780835445000,-471.0,0.00021,2]
[424402779,1780835445000,-429.0,0.00021,2]
[424402823,1780835445000,-166.0,0.00021918,2]
[424402856,1780835445000,-217.15233878,0.00022783,2]
[424402824,1780835445000,-166.0,0.00021918,2]
[424402846,1780835445000,-606.74759192,0.00022234,2]
[424402852,1780835445000,-500.0,0.00022235,2]
[424402863,1780835445000,-442.0,0.00023,2]
[424402862,1780835445000,-152.0,0.00022883,5]
[424402865,1780835445000,-179.0,0.00023,2]
[424402851,1780835445000,-151.0,0.00022235,2]
[424402864,1780835445000,-504.0,0.00023,2]
[424402853,1780835445000,-152.0,0.00022285,4]
[424402854,1780835445000,-919.73,0.00022466,2]
[424402855,1780835445000,-200.0,0.00022495,2]
[424402857,1780835445000,-260.4103811,0.00022783,2]
[424402860,1780835445000,-151.0,0.00022783,2]
[424402859,1780835445000,-151.0,0.00022783,2]
[424402861,1780835445000,-500.0,0.00022783,2]
[424402866,1780835445000,-429.0,0.00023,2]
[424402868,1780835445000,-450.0,0.00023,2]
[424402871,1780835445000,-296.0,0.00023,2]
[424402873,1780835445000,-289.0,0.00023,2]
[424402878,1780835445000,-225.18697532,0.00023331,2]
[424402869,1780835445000,-509.0,0.00023,2]
[424402875,1780835445000,-166.0,0.00023,2]
[424402877,1780835445000,-200.0,0.00023266,2]
[424402870,1780835445000,-471.0,0.00023,2]
[424402867,1780835445000,-337.0,0.00023,2]
[424402876,1780835445000,-391.0,0.00023,2]
[424402872,1780835445000,-225.0,0.00023,2]
[424402817,1780835445000,-151.0,0.00021918,2]
[424402879,1780835445000,-270.0455652,0.00023331,2]
[424402880,1780835445000,-151.0,0.00023331,2]
[424402845,1780835445000,-391.0,0.00022,2]
[424402844,1780835445000,-158.0,0.00022,2]
[424402874,1780835445000,-272.0,0.00023,2]
[424402847,1780835445000,-280.49110637,0.00022235,2]
[424402842,1780835445000,-315.218539,0.00022,2]
[424402818,1780835445000,-151.0,0.00021918,2]
[424402819,1780835445000,-151.0,0.00021918,2]
[424402815,1780835445000,-151.0,0.00021918,2]
[424402816,1780835445000,-151.0,0.00021918,2]
[424402821,1780835445000,-647.34,0.00021918,2]
[424402820,1780835445000,-155.533552,0.00021918,2]
[424402822,1780835445000,-166.0,0.00021918,2]
[424402826,1780835445000,-166.0,0.00021918,2]
[424402836,1780835445000,-509.0,0.00022,2]
[424402837,1780835445000,-471.0,0.00022,2]
[424402827,1780835445000,-166.0,0.00021918,2]
[424402829,1780835445000,-200.0,0.00021918,2]
[424402828,1780835445000,-166.0,0.00021918,2]
[424402830,1780835445000,-442.0,0.00022,2]
[424402813,1780835445000,-5000.0,0.00021918,2]
[424402831,1780835445000,-504.0,0.00022,2]
[424402835,1780835445000,-450.0,0.00022,2]
[424402849,1780835445000,-251.11897888,0.00022235,2]
[424402848,1780835445000,-209.40437684,0.00022235,2]
[424402850,1780835445000,-151.0,0.00022235,2]
[424402843,1780835445000,-272.0,0.00022,2]
[424402840,1780835445000,-289.0,0.00022,2]
[424402841,1780835445000,-450.0,0.00022,2]
[424402838,1780835445000,-296.0,0.00022,2]
[424402834,1780835445000,-337.0,0.00022,2]
[424402832,1780835445000,-179.0,0.00022,2]
[424402833,1780835445000,-429.0,0.00022,2]
[424402839,1780835445000,-225.0,0.00022,2]
[424402825,1780835445000,-166.0,0.00021918,2]
[424402921,1780835446000,-262.509128,0.00024658,2]
[424402922,1780835446000,-262.509128,0.00024658,2]
[424402930,1780835446000,-262.509128,0.00024658,2]
[424402912,1780835446000,-290.3986294,0.00024427,2]
[424402928,1780835446000,-262.509128,0.00024658,2]
[424402919,1780835446000,-262.509128,0.00024658,2]
[424402914,1780835446000,-500.0,0.00024427,2]
[424402911,1780835446000,-242.15909246,0.00024427,2]
[424402915,1780835446000,-152.0,0.00024437,3]
[424402927,1780835446000,-262.509128,0.00024658,2]
[424402923,1780835446000,-262.509128,0.00024658,2]
[424402916,1780835446000,-382.0,0.00024638,2]
[424402932,1780835446000,-262.509128,0.00024658,2]
[424402924,1780835446000,-262.509128,0.00024658,2]
[424402920,1780835446000,-262.509128,0.00024658,2]
[424402926,1780835446000,-262.509128,0.00024658,2]
[424402929,1780835446000,-262.509128,0.00024658,2]
[424402931,1780835446000,-262.509128,0.00024658,2]
[424402933,1780835446000,-262.509128,0.00024658,2]
[424402935,1780835446000,-177.154537,0.00024658,2]
[424402934,1780835446000,-1000.0,0.00024658,2]
[424402936,1780835446000,-177.154537,0.00024658,2]
[424402937,1780835446000,-177.154537,0.00024658,2]
[424402939,1780835446000,-340.111438,0.00024658,2]
[424402913,1780835446000,-151.0,0.00024427,2]
[424402941,1780835446000,-177.154537,0.00024658,2]
[424402925,1780835446000,-262.509128,0.00024658,2]
[424402918,1780835446000,-262.509128,0.00024658,2]
[424402898,1780835446000,-450.0,0.00024,2]
[424402909,1780835446000,-152.0,0.00024078,7]
[424402942,1780835446000,-177.154537,0.00024658,2]
[424402883,1780835446000,-152.0,0.00023481,6]
[424402882,1780835446000,-500.0,0.00023331,2]
[424402890,1780835446000,-247.54557653,0.00023879,2]
[424402885,1780835446000,-969.84,0.000235,7]
[424402891,1780835446000,-151.0,0.00023879,2]
[424402884,1780835446000,-7420.09804011,0.000235,30]
[424402887,1780835446000,-233.5188934,0.00023879,2]
[424402886,1780835446000,-186.49,0.00023738,2]
[424402888,1780835446000,-280.03725111,0.00023879,2]
[424402892,1780835446000,-500.0,0.00023879,2]
[424402893,1780835446000,-442.0,0.00024,2]
[424402896,1780835446000,-429.0,0.00024,2]
[424402894,1780835446000,-504.0,0.00024,2]
[424402904,1780835446000,-500.0,0.00024,2]
[424402897,1780835446000,-337.0,0.00024,2]
[424402895,1780835446000,-179.0,0.00024,2]
[424402900,1780835446000,-471.0,0.00024,2]
[424402881,1780835446000,-151.0,0.00023331,2]
[424402899,1780835446000,-509.0,0.00024,2]
[424402905,1780835446000,-272.0,0.00024,2]
[424402901,1780835446000,-296.0,0.00024,2]
[424402903,1780835446000,-289.0,0.00024,2]
[424402902,1780835446000,-225.0,0.00024,2]
[424402917,1780835446000,-647.34,0.00024658,8]
[424402910,1780835446000,-5758.2,0.00024174,2]
[424402906,1780835446000,-391.0,0.00024,2]
[424402908,1780835446000,-200.0,0.00024038,2]
[424402938,1780835446000,-340.111438,0.00024658,2]
[424402980,1780835446000,-432.45689059,0.00025,2]
[424402943,1780835446000,-177.154537,0.00024658,2]
[424402976,1780835446000,-86563.65095997,0.00025,7]
[424402973,1780835446000,-500.0,0.00024975,2]
[424402977,1780835446000,-461.04775635,0.00025,2]
[424402979,1780835446000,-194.19811307,0.00025,2]